[Event "57th Biel Festival MTO 2024"]
[White "Balabayeva,Xeniya"]
[Black "Macovei,Andrei"]
[Site "Biel"]
[Round "6.11"]
[Annotator "TA"]
[Result "1/2-1/2"]
[Date "2024.07.20"]
[WhiteElo "2246"]
[BlackElo "2479"]
[PlyCount "103"]
[TimeControl "60"]

{[%evp 9,103,0,20,13,18,16,15,0,0,0,7,-10,25,14,37,33,35,-13,-13,-13,-2,-15,-7,-17,0,-12,0,-25,-16,-22,-8,-14,0,0,0,-29,-21,-14,-10,-14,-18,-18,0,-43,-43,-42,-41,-39,-32,-33,0,-43,-40,-42,-35,-43,-43,-42,-36,-43,-47,-47,-43,-54,-47,-56,-38,-43,-31,-22,-22,-21,0,0,0,0,10,0,0,0,0,0,0,0,0,-10,0,0,0,0,8,8,8,8,8,8]} 1. d4 {[%emt 0:0:2]} Nf6 {[%emt 0:8:11]} 2. Nf3 {[%emt 0:0:15]} e6 {[%emt 0:2:38]} 3. Bf4 {[%emt 0:0:15]} b6 {[%emt 0:2:39]} 4. Nbd2 {[%emt 0:4:15]} Bb7 {[%emt 0:1:9]} 5. h3 {[%emt 0:2:1]} g6 {[%emt 0:3:38]} 6. e3 {[%emt 0:6:40]} Bg7 {[%emt 0:0:25]} 7. Bd3 {[%emt 0:0:10]} O-O {[%emt 0:0:39]} 8. e4 {[%emt 0:7:4]} Nc6 {[%emt 0:4:7]} 9. c3 {[%emt 0:2:17]} d6 {[%emt 0:1:23][%cal Oe6e5]} 10. Qe2 {[%emt 0:4:25]} Nd7 {[%emt 0:7:18]} 11. O-O {[%emt 0:8:42]} a5 {[%emt 0:6:17]} 12. Qe3 {[%emt 0:11:56]} e5 {[%emt 0:10:24]} 13. dxe5 {[%emt 0:4:42]} (13. Bg5 $14 {is more appropriate.} f6 14. Bh4 )Ncxe5 $11 {[%emt 0:1:22]} 14. Nxe5 {[%emt 0:4:58]} Nxe5 {[%emt 0:9:11]} 15. Bxe5 {[%emt 0:8:52]} dxe5 {[%emt 0:5:3]} 16. Bc4 {[%emt 0:1:35]} a4 {[%emt 0:3:55]} 17. Rad1 {[%emt 0:2:38]} Qe7 {[%emt 0:1:0]} 18. a3 {[%emt 0:3:28]} Rfd8 {[%emt 0:1:52]} 19. Nf3 {[%emt 0:4:34]} Bf6 {[%emt 0:1:6]} 20. g3 {[%emt 0:6:58]} Kg7 {[%emt 0:4:51]} (20... Rxd1 {simplifies} 21. Rxd1 Rd8 22. Rxd8+ Qxd8 23. Qe2 Kg7 )21. h4 {[%emt 0:3:2]} h6 {[%emt 0:1:40]} 22. Nh2 {[%emt 0:3:36]} Rxd1 {[%emt 0:3:59]} 23. Rxd1 {[%emt 0:0:8]} Rd8 {[%emt 0:0:1]} 24. Rxd8 {[%emt 0:2:56]} Qxd8 {[%emt 0:0:1]} 25. Qe2 {[%emt 0:0:29] Wards off Qd1+} Qa8 {[%emt 0:7:4]} 26. Bd3 {[%emt 0:3:20]} h5 {[%emt 0:0:12]} 27. Nf3 {[%emt 0:1:18]} Bc6 {[%emt 0:2:19]} 28. Kf1 {[%emt 0:6:6]} Kf8 {[%emt 0:9:39]} 29. Ng5 {[%emt 0:3:54]} Kg7 {[%emt 0:1:59]} 30. Nf3 {[%emt 0:0:47]} Qa5 {[%emt 0:2:24]} 31. Bc4 {[%emt 0:2:21][%cal Oc4f7]} Qc5 {[%emt 0:0:27]} 32. Qd3 {[%emt 0:1:0]} Be7 {[%emt 0:2:25]} 33. Ng5 {[%emt 0:0:53]} Be8 {[%emt 0:0:15]} (33... b5 $5 34. Ba2 $8 Be8 $11 )34. Qd5 {[%emt 0:0:51]} Qxd5 {[%emt 0:1:7]} 35. Bxd5 $15 {[%emt 0:0:2][%mdl 4096] Endgame. KBB-KBN} Bc5 {[%emt 0:2:24]} 36. Bc4 {[%emt 0:0:32]} Kf8 {[%emt 0:0:24]} 37. Ke2 {[%emt 0:0:55]} Ke7 {[%emt 0:0:8]} 38. f4 {[%emt 0:0:42]} f6 {[%emt 0:2:49]} 39. Ne6 {[%emt 0:0:42]} Bd6 {[%emt 0:2:49] The position is equal.} 40. f5 $1 {[%emt 0:0:33]} gxf5 {[%emt 0:0:41]} 41. exf5 {[%emt 0:3:59]} e4 {[%emt 0:3:56]} 42. Nf4 {[%emt 0:7:4]} Bd7 {[%emt 0:1:5]} 43. Nd5+ {[%emt 0:15:21]} Kd8 {[%emt 0:6:24] aiming for ...b5.} 44. Nxf6 {[%emt 0:0:8]} Bxf5 {[%emt 0:0:5] White must now prevent ...Be5.} 45. Kf2 {[%emt 0:7:41][%cal Oc4b5]} (45. Nxh5 $2 {too greedy.} Bg4+ 46. Ke3 Bxh5 $19 )Bc5+ {[%emt 0:0:44]} 46. Ke1 {[%emt 0:1:48][%cal Oc4b5]} Be3 {[%emt 0:14:30]} 47. Kd1 {[%emt 0:1:24] Dodges Bc1} ({Of course not} 47. Nxh5 Bc1 48. Bb5 (48. Ng7 Bg4 $15 )Bxb2 49. Bxa4 Bxc3+ 50. Kf2 Bd4+ 51. Ke1 Bg4 $15 )Bf2 {[%emt 0:9:35]} 48. Nxh5 {[%emt 0:0:14]} Bg4+ {[%emt 0:0:13]} 49. Be2 {[%emt 0:0:6]} Bxh5 {[%emt 0:0:2]} 50. Bxh5 {[%emt 0:0:8]} Bxg3 {[%emt 0:0:2]} 51. Bg6 {[%emt 0:0:9]} Bxh4 {[%emt 0:0:4]} 52. Bxe4 {[%emt 0:0:7] Weighted Error Value: White=0.08 (flawless) /Black=0.06 (flawless) .  Mistake:       	White=1     	---        Inaccurate:     	White=2     	Black=2      OK:         	White=17    	Black=21     Best:        	White=1     	Black=1      Strong:       	White=1     	---} 1/2-1/2

[Event "57th Biel Festival MTO 2024"]
[White "Assaubayeva,Bibisara"]
[Black "Haimovich,Tal"]
[Site "Biel"]
[Round "6.12"]
[Annotator "TA"]
[Result "1-0"]
[Date "2024.07.20"]
[WhiteElo "2472"]
[BlackElo "2330"]
[PlyCount "51"]
[TimeControl "60"]

{[%evp 16,51,74,83,166,165,207,212,189,174,231,233,235,234,236,241,312,283,496,291,461,460,563,567,808,779,944,543,555,461,694,695,690,699,721,718,726,733]} 1. c4 {[%emt 0:1:1]} Nf6 {[%emt 0:0:10]} 2. Nf3 {[%emt 0:0:16]} c6 {[%emt 0:0:22]} 3. g3 {[%emt 0:0:41]} d5 {[%emt 0:0:13]} 4. Bg2 {[%emt 0:0:44]} Bg4 {[%emt 0:0:8]} 5. Ne5 {[%emt 0:3:42]} Bf5 {[%emt 0:0:7]} 6. cxd5 {[%emt 0:3:7]} cxd5 {[%emt 0:0:8]} 7. Nc3 {[%emt 0:0:16]} e6 {[%emt 0:0:45]} 8. g4 {[%emt 0:9:7]} Bg6 {[%emt 0:0:5]} 9. h4 $1 {[%emt 0:1:4] h5 would now be deadly. White is more active.} Bd6 {[%emt 0:2:19] [#]} (9... h6 $16 )10. d4 $1 $18 {[%emt 0:1:4]} h6 {[%emt 0:8:37]} 11. Nxg6 {[%emt 0:1:8]} fxg6 {[%emt 0:0:3] White is clearly better.} 12. Qd3 {[%emt 0:0:43]} Kf7 {[%emt 0:0:21] [#]} (12... Nc6 {might work better.} 13. g5 (13. Qxg6+ Kf8 $18 )O-O 14. gxf6 Qxf6 )13. g5 $1 {[%emt 0:2:34]} hxg5 {[%emt 0:0:28]} 14. hxg5 {[%emt 0:0:50]} Rxh1+ {[%emt 0:2:31]} 15. Bxh1 {[%emt 0:0:8]} Nh7 {[%emt 0:1:0]} 16. Nxd5 {[%emt 0:5:41] aiming for Nf4.} Nxg5 $2 {[%emt 0:7:7]} (16... Nd7 {is a better defense.} 17. Qe3 Nhf8 )17. Nc3 {[%emt 0:2:57]} (17. Nf4 $142 Bxf4 18. Bxf4 )Nc6 {[%emt 0:4:33]} (17... Nd7 $142 18. Bd2 (18. Bxb7 Rb8 $18 )Nh7 )18. Qb5 {[%emt 0:7:22][%csl LRb7,LRc6,LRg5] White is clearly winning.} Nxd4 {[%emt 0:24:32]} 19. Qxb7+ {[%emt 0:0:19]} ({Worse is} 19. Qxg5 Nc2+ 20. Kd1 Be7+ 21. Qd2 Nxa1 $17 )Be7 {[%emt 0:23:50]} 20. Bxg5 {[%emt 0:0:15][%cal Oa1d1] And now Rd1! would win.} Rb8 {[%emt 0:0:12]} 21. Qxe7+ {[%emt 0:0:28]} Qxe7 {[%emt 0:0:7]} 22. Bxe7 {[%emt 0:0:4] A strong pair of Bishops.} Nc2+ {[%emt 0:0:20]} (22... Rxb2 $142 23. Be4 Kxe7 )23. Kd2 {[%emt 0:0:6]} Nxa1 {[%emt 0:0:15]} 24. Ba3 {[%emt 0:0:6]} g5 {[%emt 0:3:46]} 25. Kc1 {[%emt 0:1:3]} Rh8 {[%emt 0:0:43]} 26. Be4 {[%emt 0:0:20] Black did not feel at home in the position after the opening.   Weighted Error Value: White=0.72/Black=1.15.  Mistake:       	White=1     	Black=4      Inaccurate:     	---       	Black=1      OK:         	White=5     	Black=3      Best:        	White=1     	---        Strong:       	White=1     	---} 1-0

[Event "57th Biel Festival MTO 2024"]
[White "Ansat,Aldiyar"]
[Black "Ayush Sharma"]
[Site "Biel"]
[Round "6.13"]
[Annotator "ChessBase"]
[Result "1/2-1/2"]
[Date "2024.07.20"]
[WhiteElo "2437"]
[BlackElo "2325"]
[PlyCount "134"]
[TimeControl "60"]

1. e4 {[%emt 0:6:19]} c5 {[%emt 0:0:6]} 2. Nf3 {[%emt 0:0:5]} d6 {[%emt 0:0:5]} 3. Bb5+ {[%emt 0:0:39]} Bd7 {[%emt 0:0:24]} 4. Bxd7+ {[%emt 0:0:8]} Nxd7 {[%emt 0:0:32]} 5. O-O {[%emt 0:0:38]} Ngf6 {[%emt 0:0:7]} 6. Qe2 {[%emt 0:1:47]} e6 {[%emt 0:0:21]} 7. c3 {[%emt 0:5:49]} Be7 {[%emt 0:0:7]} 8. d4 {[%emt 0:0:7]} O-O {[%emt 0:0:6]} 9. Nbd2 {[%emt 0:9:20]} Rc8 {[%emt 0:6:44]} 10. e5 {[%emt 0:2:36]} Ne8 {[%emt 0:4:30]} 11. Ne4 {[%emt 0:2:55]} cxd4 {[%emt 0:2:45]} 12. cxd4 {[%emt 0:0:30]} dxe5 {[%emt 0:7:47]} 13. dxe5 {[%emt 0:0:6]} Nc7 {[%emt 0:0:5]} 14. Bd2 {[%emt 0:28:25]} Nd5 {[%emt 0:2:8]} 15. Rac1 {[%emt 0:2:34]} Rxc1 {[%emt 0:16:3]} 16. Rxc1 {[%emt 0:0:8]} Qb8 {[%emt 0:0:24]} 17. Nc3 {[%emt 0:1:46]} Nb4 {[%emt 0:2:56]} 18. a3 {[%emt 0:5:29]} Nc6 {[%emt 0:0:13]} 19. Bf4 {[%emt 0:0:15]} Rd8 {[%emt 0:11:27]} 20. Bg3 {[%emt 0:3:16]} Nc5 {[%emt 0:8:46]} 21. Nb5 {[%emt 0:11:14]} Nd3 {[%emt 0:4:0]} 22. Rf1 {[%emt 0:1:31]} Rd5 {[%emt 0:1:12]} 23. Nc3 {[%emt 0:0:20]} Rd7 {[%emt 0:1:1]} 24. b4 {[%emt 0:4:20]} Qd8 {[%emt 0:10:21]} 25. Ne4 {[%emt 0:0:25]} a5 {[%emt 0:4:52]} 26. b5 {[%emt 0:1:13]} Na7 {[%emt 0:0:54]} 27. Nd6 {[%emt 0:1:25]} Nc5 {[%emt 0:4:38]} 28. Nd2 {[%emt 0:0:57]} Bxd6 {[%emt 0:4:20]} 29. exd6 {[%emt 0:0:4]} b6 {[%emt 0:0:3]} 30. Nc4 {[%emt 0:2:13]} Nxb5 {[%emt 0:0:18]} 31. Qb2 {[%emt 0:5:53]} Na7 {[%emt 0:4:10]} 32. Qxb6 {[%emt 0:0:28]} Qxb6 {[%emt 0:0:6]} 33. Nxb6 {[%emt 0:0:5]} Rb7 {[%emt 0:0:15]} 34. Nc4 {[%emt 0:0:55]} Nc6 {[%emt 0:1:7]} 35. Rc1 {[%emt 0:0:4]} f6 {[%emt 0:1:41]} 36. Kf1 {[%emt 0:0:6]} Nd7 {[%emt 0:2:15]} 37. f4 {[%emt 0:4:3]} Kf7 {[%emt 0:0:21]} 38. Be1 {[%emt 0:3:31]} Rb5 {[%emt 0:6:20]} 39. a4 {[%emt 0:1:42]} Rd5 {[%emt 0:1:57]} 40. Na3 {[%emt 0:2:17]} Ndb8 {[%emt 0:3:56]} 41. Nb5 {[%emt 0:53:34]} Rf5 {[%emt 0:8:10]} 42. Bd2 {[%emt 0:0:0]} g5 {[%emt 0:1:32]} 43. Na7 {[%emt 0:0:0]} Rd5 {[%emt 0:2:38]} 44. Nxc6 {[%emt 0:0:0]} Nxc6 {[%emt 0:0:4]} 45. Rxc6 {[%emt 0:0:0]} Rxd2 {[%emt 0:2:57]} 46. Rc7+ {[%emt 0:0:0]} Kg6 {[%emt 0:1:15]} 47. fxg5 {[%emt 0:0:0]} Rxd6 {[%emt 0:3:4]} 48. Ra7 {[%emt 0:0:0]} fxg5 {[%emt 0:1:28]} 49. Rxa5 {[%emt 0:0:0]} Rd2 {[%emt 0:0:6]} 50. Ra8 {[%emt 0:4:20]} Ra2 {[%emt 0:1:56]} 51. a5 {[%emt 0:0:0]} Kf5 {[%emt 0:0:12]} 52. a6 {[%emt 0:0:0]} Ke4 {[%emt 0:0:16]} 53. a7 {[%emt 0:0:0]} Ke3 {[%emt 0:0:10]} 54. g3 {[%emt 0:0:0]} e5 {[%emt 0:0:38]} 55. Re8 {[%emt 0:0:0]} Rxa7 {[%emt 0:0:7]} 56. Rxe5+ {[%emt 0:0:0]} Kf3 {[%emt 0:0:6]} 57. Rf5+ {[%emt 0:0:0]} Kg4 {[%emt 0:0:6]} 58. Rf6 {[%emt 0:0:0]} h5 {[%emt 0:1:22]} 59. Kg2 {[%emt 0:0:0]} Ra2+ {[%emt 0:0:4]} 60. Rf2 {[%emt 0:0:0]} Rxf2+ {[%emt 0:0:4]} 61. Kxf2 {[%emt 0:8:22]} Kh3 {[%emt 0:15:11]} 62. Kg1 {[%emt 0:0:5]} h4 {[%emt 0:0:33]} 63. gxh4 {[%emt 0:0:5]} Kxh4 {[%emt 0:0:33]} 64. Kg2 {[%emt 0:0:12]} g4 {[%emt 0:0:6]} 65. Kg1 {[%emt 0:0:2]} Kh3 {[%emt 0:0:5]} 66. Kh1 {[%emt 0:0:4]} g3 {[%emt 0:0:13]} 67. hxg3 {[%emt 0:0:9]} Kxg3 {[%emt 0:0:2]} 1/2-1/2

[Event "57th Biel Festival MTO 2024"]
[White "Materia,Marco"]
[Black "Lyutsinger,Iren"]
[Site "Biel"]
[Round "6.14"]
[Annotator "TA"]
[Result "1-0"]
[Date "2024.07.20"]
[WhiteElo "2453"]
[BlackElo "2069"]
[PlyCount "103"]
[TimeControl "60"]

{[%evp 9,103,0,14,15,13,18,0,13,17,22,24,0,21,4,24,5,26,0,18,0,-14,-9,0,0,0,0,0,-5,-14,-15,-7,-3,-7,-11,0,0,8,0,35,0,87,80,79,95,81,77,88,77,148,50,50,47,168,150,229,197,233,222,228,222,209,204,347,326,824,814,1105,1052,1266,1237,1481,1497,3593,2803,2612,2700,1496,5522,12795,12795,12790,9250,5631,2777,29988,29989,29990,29991,29993,29994,29996,29983,29983,29981,29982,379]} 1. d4 {[%emt 0:0:1]} Nf6 {[%emt 0:0:8]} 2. c4 {[%emt 0:0:3]} e6 {[%emt 0:0:8]} 3. Nf3 {[%emt 0:0:4]} b6 {[%emt 0:0:7]} 4. a3 {[%emt 0:1:11]} Bb7 {[%emt 0:0:14]} 5. Bf4 {[%emt 0:0:22]} c5 {[%emt 0:0:7]} 6. Nc3 {[%emt 0:0:2]} cxd4 {[%emt 0:0:12]} 7. Qxd4 {[%emt 0:0:10]} Nc6 {[%emt 0:0:6]} 8. Qd3 {[%emt 0:0:10] Die Stellung ist ausgeglichen.} Nh5 {[%emt 0:0:5]} 9. Bg5 {[%emt 0:0:24]} Be7 {[%emt 0:0:28]} 10. Bxe7 {[%emt 0:0:12]} Qxe7 {[%emt 0:0:25]} 11. g3 {[%emt 0:0:4]} O-O {[%emt 0:5:54]} 12. Bg2 {[%emt 0:0:7]} Rac8 {[%emt 0:13:28]} 13. O-O {[%emt 0:7:35]} Na5 {[%emt 0:17:31]} 14. Nd2 {[%emt 0:2:9]} Ba6 {[%emt 0:5:45][%cal Ra5c4]} 15. b4 {[%emt 0:15:53]} Nxc4 {[%emt 0:12:16]} (15... Bxc4 $2 16. Qf3 $18 (16. Qc2 Bxe2 17. Rfc1 Rc7 $18 ))16. b5 {[%emt 0:0:40]} Nxd2 {[%emt 0:7:10]} (16... Nxa3 $2 17. bxa6 Nf6 18. Bb7 $18 )17. Qxd2 {[%emt 0:0:8]} Qc5 $1 {[%emt 0:4:34][%csl LRb5,LRc3]} 18. bxa6 {[%emt 0:4:36]} Qxc3 {[%emt 0:0:7]} 19. Qxd7 {[%emt 0:0:52]} Rc7 {[%emt 0:1:21]} 20. Qd6 $36 {[%emt 0:8:7][%mdl 2048] Weiss kämpft um Vorteil.} Nf6 {[%emt 0:2:14]} 21. Rfd1 {[%emt 0:8:37]} Nd7 {[%emt 0:5:30]} 22. a4 {[%emt 0:18:27]} g6 {[%emt 0:3:34]} 23. Bb7 {[%emt 0:7:51]} Ne5 {[%emt 0:6:0] Droht stark ...Rd7.} 24. Qd4 {[%emt 0:4:2]} (24. Rac1 {wäre vielleicht verwirrender.} Qxc1 25. Rxc1 Rxc1+ 26. Kg2 )Qa5 {[%emt 0:5:34]} (24... Qxd4 $11 25. Rxd4 Nd7 )25. Rac1 $16 {[%emt 0:1:41]} Rd7 {[%emt 0:1:13]} 26. Qf4 {[%emt 0:0:12]} Rxd1+ {[%emt 0:3:19]} 27. Rxd1 {[%emt 0:0:1]} Qc5 {[%emt 0:1:32]} 28. Kg2 {[%emt 0:1:33]} Qc7 {[%emt 0:2:52]} (28... Qc2 $142 29. Rd4 Qc5 (29... Qxe2 $2 30. Re4 $18 ))29. Rd4 {[%emt 0:5:52] Weiß steht aktiver.} ({Vorzuziehen ist} 29. Qc1 $16 Qxc1 30. Rxc1 )Qc5 $14 {[%emt 0:2:34]} 30. h3 {[%emt 0:2:2] Schwarz ist schwach auf den weissen Feldern} Qa5 {[%emt 0:1:14] Das kostet Schwarz die Partie.} (30... h5 $1 $14 )31. Qe4 $18 {[%emt 0:6:20] Und f4 würde nun gewinnen.} f5 {[%emt 0:1:29] [#]} (31... g5 $16 32. h4 gxh4 )32. Qh4 $1 {[%emt 0:1:33]} Qc5 {[%emt 0:1:10][%cal Oh7h6] Wehrt Qe7 ab} 33. Rd8 {[%emt 0:1:46]} Nf7 {[%emt 0:3:48]} 34. Rxf8+ {[%emt 0:0:57]} Qxf8 {[%emt 0:0:13][%mdl 4096] Endspiel. KQB-KQN} 35. Qc4 {[%emt 0:0:12]} Qd6 {[%emt 0:0:45]} (35... Qe8 {ist wohl besser.} 36. Qc3 Qb8 )36. Qc8+ {[%emt 0:0:34]} Kg7 $2 {[%emt 0:0:24]} (36... Qd8 37. Qxe6 Kg7 )37. Qa8 {[%emt 0:0:36]} f4 {[%emt 0:1:30]} 38. Qxa7 {[%emt 0:0:54]} fxg3 {[%emt 0:0:5]} 39. fxg3 {[%emt 0:0:20]} Kh6 {[%emt 0:0:42] [#]} 40. a5 $1 {[%emt 0:1:5][%mdl 512]} Qe5 {[%emt 0:1:25]} (40... Ne5 41. Qxb6 )41. Qxb6 {[%emt 0:50:46]} Nd6 {[%emt 0:52:12] [#]} 42. Qxd6 $3 {[%emt 0:0:28][%mdl 512]} Qxd6 {[%emt 0:1:6]} 43. a7 {[%emt 0:0:4]} Qe5 {[%emt 0:2:48]} 44. Bf3 {[%emt 0:0:0]} (44. a8=B Qxe2+ 45. Kg1 Qe1+ 46. Kh2 Qxa5 $19 )Qxa5 {[%emt 0:0:0]} 45. a8=Q {[%emt 0:0:0]} (45. a8=B $2 {zu gefräßig.} Qc7 46. Bae4 Qc3 $19 )Qc5 {[%emt 0:0:0] Wehrt Qf8+ ab} 46. Qe8 {[%emt 0:0:0]} e5 {[%emt 0:0:0]} 47. Qf7 {[%emt 0:0:0] Weiß setzt Matt.} Qd6 {[%emt 0:0:0]} 48. h4 {[%emt 0:0:0]} Qd8 {[%emt 0:0:0]} 49. g4 {[%emt 0:0:0]} g5 {[%emt 0:0:0]} 50. Qe6+ {[%emt 0:0:0]} Kg7 {[%emt 0:0:0]} 51. Qxe5+ {[%emt 0:0:0]} Kh6 {[%emt 0:0:0]} 52. Qxg5+ $2 {[%emt 0:0:36] Gewichteter Fehlerwert: Weiß=0.06 (makellos) /Schwarz=0.39.  Fehler:       	Weiß=1     	Schwarz=6     Ungenau:       	Weiß=2     	Schwarz=2     OK:         	Weiß=16    	Schwarz=16    Bester:       	Weiß=5     	---        Stark:        	Weiß=1     	Schwarz=1} (52. Qe6+ {setzt Matt} Kg7 53. h5 (53. Qe5+ Qf6 $18 )Qc7 54. h6+ Kf8 55. Qf6+ Qf7 56. Qd8+ (56. Qxg5 Qc7 57. Qf6+ Qf7 58. Qe5 Qg6 59. g5 Qf7 60. Qd6+ Qe7 61. Qxe7+ Kxe7 )Qe8 57. Qxg5 )1-0

[Event "57th Biel Festival MTO 2024"]
[White "Hafiz,Arif Abdul"]
[Black "Xue,Haowen"]
[Site "Biel"]
[Round "6.15"]
[Annotator "ChessBase"]
[Result "0-1"]
[Date "2024.07.20"]
[WhiteElo "2367"]
[BlackElo "2452"]
[PlyCount "114"]
[TimeControl "60"]

1. e4 {[%emt 0:4:22]} c5 {[%emt 0:0:16]} 2. Nc3 {[%emt 0:0:7]} e6 {[%emt 0:0:5]} 3. Nge2 {[%emt 0:0:7]} Nf6 {[%emt 0:1:39]} 4. g3 {[%emt 0:1:26]} b5 {[%emt 0:5:38]} 5. Bg2 {[%emt 0:12:47]} Bb7 {[%emt 0:0:23]} 6. d3 {[%emt 0:1:4]} b4 {[%emt 0:1:48]} 7. Nb1 {[%emt 0:0:29]} d5 {[%emt 0:6:34]} 8. e5 {[%emt 0:0:26]} Ng4 {[%emt 0:3:29]} 9. f4 {[%emt 0:0:29]} h5 {[%emt 0:0:53]} 10. h3 {[%emt 0:1:51]} Nh6 {[%emt 0:2:37]} 11. Be3 {[%emt 0:8:48]} Nf5 {[%emt 0:10:22]} 12. Bf2 {[%emt 0:0:23]} g5 {[%emt 0:2:8]} 13. Nd2 {[%emt 0:4:22]} Nd7 {[%emt 0:15:21]} 14. Nf3 {[%emt 0:10:36]} gxf4 {[%emt 0:2:58]} 15. Nxf4 {[%emt 0:0:46]} d4 {[%emt 0:9:4]} 16. Qe2 {[%emt 0:5:19]} Bh6 {[%emt 0:4:34]} 17. Nxh5 {[%emt 0:6:23]} Be3 {[%emt 0:6:39]} 18. g4 {[%emt 0:13:40]} Bxf2+ {[%emt 0:0:19]} 19. Qxf2 {[%emt 0:0:33]} Ne3 {[%emt 0:0:7]} 20. Rg1 {[%emt 0:2:32]} Qc7 {[%emt 0:3:9]} 21. Nh4 {[%emt 0:4:9]} O-O-O {[%emt 0:3:0]} 22. Bxb7+ {[%emt 0:7:11]} Qxb7 {[%emt 0:0:1]} 23. Ng2 {[%emt 0:6:45]} Nxe5 {[%emt 0:0:41]} 24. Nxe3 {[%emt 0:0:24]} Nf3+ {[%emt 0:0:39]} 25. Ke2 {[%emt 0:0:24]} Nxg1+ {[%emt 0:0:4]} 26. Rxg1 {[%emt 0:0:4]} dxe3 {[%emt 0:0:4]} 27. Qxe3 {[%emt 0:0:7]} Qc7 {[%emt 0:4:25]} 28. b3 {[%emt 0:4:7]} Rd5 {[%emt 0:1:29]} 29. Kd2 {[%emt 0:2:22]} Qh2+ {[%emt 0:1:14]} 30. Kd1 {[%emt 0:4:5]} Re5 {[%emt 0:0:16]} 31. Rg2 {[%emt 0:0:10]} Qh1+ {[%emt 0:2:47]} 32. Rg1 {[%emt 0:0:1]} Rxe3 {[%emt 0:3:7]} 33. Rxh1 {[%emt 0:0:1]} Kd7 {[%emt 0:0:54]} 34. Kd2 {[%emt 0:1:8]} Re5 {[%emt 0:0:10]} 35. h4 {[%emt 0:3:33]} Ke7 {[%emt 0:1:10]} 36. Ng3 {[%emt 0:0:54]} f6 {[%emt 0:3:36]} 37. Nf1 {[%emt 0:2:9]} f5 {[%emt 0:1:34]} 38. gxf5 {[%emt 0:4:43]} exf5 {[%emt 0:0:19]} 39. Ng3 {[%emt 0:0:18]} Rg8 {[%emt 0:1:31]} 40. Rh3 {[%emt 0:0:38]} f4 {[%emt 0:0:30]} 41. Ne4 {[%emt 0:50:24]} Rg2+ {[%emt 0:50:32]} 42. Kd1 {[%emt 0:0:32]} Rh5 {[%emt 0:0:31]} 43. Rh1 {[%emt 0:0:0]} Ke6 {[%emt 0:0:0]} 44. Rf1 {[%emt 0:0:0]} Rxh4 {[%emt 0:0:0]} 45. Nxc5+ {[%emt 0:0:0]} Kd5 {[%emt 0:0:0]} 46. d4 {[%emt 0:0:0]} Kxd4 {[%emt 0:0:0]} 47. Nd3 {[%emt 0:0:0]} Kc3 {[%emt 0:0:0]} 48. Ne1 {[%emt 0:0:0]} Rg3 {[%emt 0:0:0]} 49. Nf3 {[%emt 0:0:0]} Rh5 {[%emt 0:0:0]} 50. Kc1 {[%emt 0:0:0]} Rd5 {[%emt 0:0:0]} 51. Rf2 {[%emt 0:0:0]} Ra5 {[%emt 0:0:0]} 52. Nd2 {[%emt 0:0:0]} Rg1+ {[%emt 0:0:0]} 53. Nf1 {[%emt 0:0:0]} Re5 {[%emt 0:0:0]} 54. Kd1 {[%emt 0:0:0]} Re4 {[%emt 0:0:0]} 55. Rf3+ {[%emt 0:0:0]} Kb2 {[%emt 0:0:0]} 56. Kd2 {[%emt 0:0:0]} Rd4+ {[%emt 0:0:0]} 57. Ke2 {[%emt 0:0:0]} Rg2+ {[%emt 0:0:0]} 0-1

[Event "57th Biel Festival MTO 2024"]
[White "Bilguun,Sumiya"]
[Black "Nurman,Alua"]
[Site "Biel"]
[Round "6.16"]
[Annotator "TA"]
[Result "1/2-1/2"]
[Date "2024.07.20"]
[WhiteElo "2466"]
[BlackElo "2274"]
[PlyCount "35"]
[TimeControl "60"]

{[%evp 9,35,28,31,-23,-13,-31,22,-66,-59,-81,-81,-106,-100,-87,-85,-120,-105,-132,-133,-127,-117,-111,-111,-104,-73,-154,-146,-137]} 1. e4 {[%emt 0:0:3]} c5 {[%emt 0:6:44]} 2. Nc3 {[%emt 0:0:14]} d6 {[%emt 0:0:19]} 3. f4 {[%emt 0:0:20]} Nc6 {[%emt 0:0:31]} 4. Nf3 {[%emt 0:2:32]} g6 {[%emt 0:0:57]} 5. Bb5 {[%emt 0:1:46]} Bd7 {[%emt 0:0:42]} 6. Bc4 {[%emt 0:2:40]} (6. Bxc6 $14 Bxc6 7. d4 )Bg7 $11 {[%emt 0:1:6]} 7. O-O {[%emt 0:1:58]} Nd4 {[%emt 0:5:31]} (7... e6 $15 )8. e5 {[%emt 0:38:52]} (8. Nxd4 $11 cxd4 9. Ne2 )Bc6 $15 {[%emt 0:15:20]} 9. Nxd4 {[%emt 0:2:17]} cxd4 {[%emt 0:0:6]} 10. Nb5 {[%emt 0:0:25]} dxe5 {[%emt 0:24:31]} 11. fxe5 {[%emt 0:1:4]} Nh6 {[%emt 0:0:8][%cal Oa7a6] ...a6! ist eine echte Drohung.} 12. d3 {[%emt 0:20:31] [#]} O-O $1 {[%emt 0:2:6]} 13. Bf4 {[%emt 0:15:14]} a6 {[%emt 0:5:42]} 14. Na3 {[%emt 0:0:10]} b5 {[%emt 0:8:42]} 15. Bb3 {[%emt 0:0:5]} Nf5 {[%emt 0:3:55]} 16. Qe2 {[%emt 0:7:41]} Qb6 {[%emt 0:6:11] Und ...a5 würde nun gewinnen.} 17. e6 {[%emt 0:7:44]} (17. Rf2 $142 )f6 $17 {[%emt 0:1:45]} 18. Kh1 {[%emt 0:0:57] Gewichteter Fehlerwert: Weiß=0.34/Schwarz=0.09 (makellos) .  Fehler:       	Weiß=2     	Schwarz=1     Ungenau:       	Weiß=1     	---        OK:         	Weiß=3     	Schwarz=5     Bester:       	---       	Schwarz=2     Stark:        	---       	Schwarz=1} 1/2-1/2

[Event "57th Biel Festival MTO 2024"]
[White "Razafindratsima,Timothe"]
[Black "Smeets,Kobe"]
[Site "Biel"]
[Round "6.17"]
[Annotator "ChessBase"]
[Result "1-0"]
[Date "2024.07.20"]
[WhiteElo "2445"]
[BlackElo "2324"]
[PlyCount "59"]
[TimeControl "60"]

1. e4 {[%emt 0:0:2]} e5 {[%emt 0:0:0]} 2. Nf3 {[%emt 0:0:0]} Nc6 {[%emt 0:0:0]} 3. Bb5 {[%emt 0:1:26]} Nge7 {[%emt 0:0:10]} 4. O-O {[%emt 0:0:22]} Ng6 {[%emt 0:4:6]} 5. d4 {[%emt 0:3:20]} exd4 {[%emt 0:0:0]} 6. Nxd4 {[%emt 0:0:23]} Bc5 {[%emt 0:0:0]} 7. Nf5 {[%emt 0:1:4]} O-O {[%emt 0:0:0]} 8. Nc3 {[%emt 0:19:2]} a6 {[%emt 0:7:37]} 9. Bc4 {[%emt 0:9:22]} d6 {[%emt 0:6:41]} 10. a3 {[%emt 0:5:25]} Be6 {[%emt 0:5:28]} 11. Nd5 {[%emt 0:1:39]} Nce5 {[%emt 0:10:54]} 12. Ba2 {[%emt 0:3:19]} Qd7 {[%emt 0:21:51]} 13. Be3 {[%emt 0:15:48]} Bxf5 {[%emt 0:9:22]} 14. exf5 {[%emt 0:0:23]} Qxf5 {[%emt 0:1:8]} 15. Nxc7 {[%emt 0:4:59]} Rac8 {[%emt 0:15:31]} 16. Nd5 {[%emt 0:0:5]} Bxe3 {[%emt 0:6:31]} 17. Nxe3 {[%emt 0:0:15]} Qd7 {[%emt 0:0:34]} 18. f4 {[%emt 0:11:11]} Nc6 {[%emt 0:0:5]} 19. f5 {[%emt 0:0:1]} Nge5 {[%emt 0:0:10]} 20. f6 {[%emt 0:0:4]} g6 {[%emt 0:1:18]} 21. Nd5 {[%emt 0:2:14]} b5 {[%emt 0:6:1]} 22. Qd2 {[%emt 0:10:55]} Kh8 {[%emt 0:0:12]} 23. Rae1 {[%emt 0:0:2]} Rce8 {[%emt 0:4:12]} 24. c3 {[%emt 0:5:30]} Qg4 {[%emt 0:2:1]} 25. Bb1 {[%emt 0:5:10]} Qh5 {[%emt 0:1:23]} 26. Qf4 {[%emt 0:2:33]} Nd3 {[%emt 0:5:59]} 27. Bxd3 {[%emt 0:1:2]} Rxe1 {[%emt 0:1:31]} 28. Rxe1 {[%emt 0:0:6]} Qxd5 {[%emt 0:1:0]} 29. Qh6 {[%emt 0:0:19]} Rg8 {[%emt 0:0:4]} 30. Re8 {[%emt 0:0:11]} 1-0